bitfinex/quotes_BTCUSD_20240729
["timestamp","ask_amount","ask_price","bid_price","bid_amount"]
[1722294726379,0.24614,67177.0,67172.0,0.148871]
[1722294726380,0.1127681,67175.0,67172.0,0.148871]
[1722294726575,0.1127681,67176.0,67168.0,0.002]
[1722294726802,0.25586749,67176.0,67175.0,0.148864]
[1722294727705,0.25586749,67176.0,67175.0,0.446593]
[1722294727934,0.25586749,67176.0,67175.0,0.148864]
[1722294728712,0.26086749,67176.0,67175.0,0.446593]
[1722294729342,0.2792215,67176.0,67175.0,0.446593]
[1722294729769,0.02335401,67176.0,67175.0,0.8188555]
[1722294730140,0.02335401,67176.0,67175.0,1.1165845]
[1722294730304,0.02335401,67176.0,67175.0,1.042051]
[1722294730513,0.03035401,67176.0,67175.0,1.043051]
[1722294731527,0.03035401,67176.0,67175.0,1.04408676]
[1722294731729,0.02335401,67176.0,67175.0,1.042051]
[1722294731952,0.02335401,67176.0,67175.0,1.18842033]
[1722294732073,0.02335401,67176.0,67175.0,1.18715039]
[1722294732500,0.02335401,67176.0,67175.0,1.19915039]
[1722294732920,0.02435401,67176.0,67175.0,1.19915039]
[1722294733321,0.02435401,67176.0,67175.0,1.18715039]
[1722294733542,0.03335401,67176.0,67175.0,1.19915039]
[1722294733958,0.03335401,67176.0,67175.0,1.21015039]
[1722294734390,0.03335401,67176.0,67175.0,1.20815039]
[1722294734574,0.38689695,67176.0,67175.0,0.018]
[1722294734711,1.49378543,67176.0,67175.0,0.018]
[1722294734917,1.49378543,67176.0,67175.0,0.007]
[1722294735270,1.49378543,67176.0,67166.0,0.000913]
[1722294735271,0.148881,67168.0,67166.0,0.000913]
[1722294735409,0.297755,67170.0,67167.0,0.0015542]
[1722294735635,0.27439781,67169.0,67167.0,0.0015542]
[1722294735829,0.2686192,67168.0,67166.0,0.000913]
[1722294736074,0.12551981,67167.0,67166.0,0.000913]
[1722294736229,0.2686192,67167.0,67166.0,0.000913]
[1722294736430,0.28114556,67167.0,67166.0,0.000913]
[1722294736671,0.28114556,67167.0,67166.0,0.149797]
[1722294736871,0.28114556,67167.0,67166.0,0.000913]
[1722294737493,0.28114556,67167.0,67166.0,0.447566]
[1722294737695,0.15562575,67167.0,67166.0,0.452566]
[1722294737919,0.15562575,67167.0,67166.0,0.750335]
[1722294738099,0.14309939,67167.0,67166.0,0.750335]
[1722294738701,0.14309939,67167.0,67166.0,0.751335]
[1722294739042,0.16645416,67167.0,67166.0,0.751335]
[1722294739882,0.02335477,67167.0,67166.0,1.15860555]
[1722294740171,0.01,67176.0,67175.0,0.744322]
[1722294740644,0.01,67176.0,67175.0,1.042051]
[1722294741964,0.01,67176.0,67175.0,1.043051]
[1722294742387,0.01,67176.0,67175.0,1.76273945]
[1722294742595,0.01,67176.0,67175.0,1.75073945]
[1722294743005,0.01,67176.0,67175.0,1.76073945]
[1722294743417,0.03335141,67176.0,67175.0,1.76073945]
[1722294743633,0.03335141,67176.0,67175.0,1.75073945]
[1722294743839,0.01,67176.0,67175.0,1.76073945]
[1722294744034,0.01,67176.0,67175.0,1.75973945]
[1722294744239,0.01,67176.0,67175.0,1.76173945]
[1722294744513,0.01,67176.0,67175.0,1.75073945]
[1722294744733,0.01,67176.0,67175.0,1.8410252]
[1722294744915,0.01,67176.0,67175.0,1.8310252]
[1722294745433,1.32889206,67176.0,67175.0,0.014]
[1722294745633,1.03116706,67176.0,67175.0,0.014]
[1722294745790,1.04371128,67176.0,67175.0,0.014]
[1722294746260,0.74598628,67176.0,67175.0,0.014]
[1722294746393,0.74798628,67176.0,67175.0,0.014]
[1722294746870,0.297731,67175.0,67168.0,0.148879]
[1722294747085,0.148869,67173.0,67167.0,0.14888]
[1722294747301,0.27685506,67172.0,67167.0,0.14888]
[1722294747519,0.13375567,67171.0,67170.0,0.148875]
[1722294747725,0.27685506,67171.0,67170.0,0.148875]
[1722294748189,0.14629989,67171.0,67170.0,0.148875]
[1722294748424,0.14629989,67171.0,67170.0,0.446626]
[1722294749455,0.14629989,67171.0,67170.0,0.148875]
[1722294749663,0.14629989,67171.0,67170.0,0.446626]
[1722294750484,0.28939928,67171.0,67168.0,0.149879]
[1722294750706,0.28939928,67171.0,67169.0,0.148878]
[1722294750707,0.27685506,67170.0,67169.0,0.148878]
[1722294751138,0.28936737,67170.0,67169.0,0.74439]
[1722294751396,0.1556117,67170.0,67169.0,0.74439]
[1722294751806,0.16645434,67170.0,67169.0,0.74439]
[1722294752218,0.02335495,67170.0,67169.0,0.74439]
[1722294752642,0.02335495,67170.0,67169.0,0.74539]
[1722294752854,0.003,67171.0,67170.0,0.148875]
[1722294753084,0.003,67171.0,67170.0,0.446626]
[1722294753294,0.01251591,67171.0,67170.0,0.446626]
[1722294753509,0.14726612,67176.0,67171.0,0.148872]
[1722294753510,0.13507795,67175.0,67171.0,0.148872]
[1722294753709,0.14309939,67174.0,67171.0,0.148872]
[1722294753887,0.14309939,67174.0,67172.0,0.14887]
[1722294753888,0.1350759,67173.0,67172.0,0.14887]
[1722294755336,0.33992282,67173.0,67166.0,0.000913]
[1722294755536,0.42704729,67172.0,67167.0,0.148881]
[1722294755837,0.1350759,67171.0,67169.0,0.000913]
[1722294756009,0.27817529,67170.0,67169.0,0.000913]
[1722294756602,0.42705029,67170.0,67169.0,0.000913]
[1722294756751,0.27817529,67170.0,67169.0,0.000913]
[1722294757270,0.42905029,67170.0,67169.0,0.000913]
[1722294757472,0.28017529,67170.0,67169.0,0.000913]
[1722294758880,0.28017529,67170.0,67169.0,0.001913]
[1722294760413,0.42905029,67170.0,67169.0,0.001913]
[1722294760623,0.45240575,67170.0,67169.0,0.001913]
[1722294761729,0.42905029,67170.0,67169.0,0.001913]
[1722294761929,0.28017529,67170.0,67169.0,0.001913]
[1722294762551,1.10163997,67170.0,67169.0,0.001913]
[1722294762752,0.80388897,67170.0,67169.0,0.001913]
[1722294763407,0.50613797,67170.0,67169.0,0.001913]
[1722294763712,0.28017529,67170.0,67169.0,0.001913]
[1722294764813,1.0370682,67170.0,67169.0,0.001913]
[1722294764965,1.06042366,67170.0,67169.0,0.001913]
[1722294765168,1.0370682,67170.0,67169.0,0.001913]
[1722294765374,1.4740192,67170.0,67169.0,0.001913]
[1722294765701,1.042177,67167.0,67166.0,0.000913]
[1722294765906,2.02321401,67167.0,67166.0,0.000913]
[1722294766109,2.04621401,67167.0,67166.0,0.000913]
[1722294766311,2.16887094,67167.0,67166.0,0.000913]
[1722294766722,1.04224,67163.0,67162.0,0.0004535]
[1722294766893,1.81849546,67163.0,67162.0,0.0004535]
[1722294767307,1.83288604,67163.0,67162.0,0.0004535]
[1722294767823,1.17824759,67163.0,67162.0,0.0094535]
[1722294768379,0.4395822,67163.0,67162.0,0.0094535]
[1722294768488,0.31405169,67163.0,67162.0,0.0094535]
[1722294768893,0.32605169,67163.0,67162.0,0.0104535]
[1722294769301,0.47494269,67163.0,67162.0,0.0104535]
[1722294769552,1.36829169,67163.0,67162.0,0.0104535]
[1722294769754,1.55507432,67163.0,67162.0,0.0104535]
[1722294769895,1.51103059,67163.0,67162.0,0.0104535]
[1722294770098,1.51103059,67163.0,67162.0,0.0014535]
[1722294771563,1.51103059,67163.0,67162.0,0.0024535]
[1722294771766,1.51103059,67163.0,67162.0,0.0014535]
[1722294771994,1.51103059,67163.0,67162.0,0.0024535]
[1722294772355,1.65313059,67163.0,67162.0,0.0024535]
[1722294772746,2.38664851,67163.0,67162.0,0.0024535]
[1722294772946,2.476037,67163.0,67162.0,0.0024535]
[1722294773140,2.41000947,67163.0,67162.0,0.0024535]
[1722294773413,2.45262521,67163.0,67162.0,0.0024535]
[1722294773589,2.27973474,67163.0,67162.0,0.0024535]
[1722294773765,2.45306882,67163.0,67162.0,0.0024535]
[1722294774187,2.38709169,67163.0,67162.0,0.0024535]
[1722294775018,2.40709169,67163.0,67162.0,0.0024535]
[1722294775176,2.50709169,67163.0,67162.0,0.0024535]
[1722294776255,2.49709169,67163.0,67162.0,0.0024535]
[1722294776456,2.50709169,67163.0,67162.0,0.0024535]
[1722294776659,2.53045568,67163.0,67162.0,0.0024535]
[1722294777071,2.42309873,67163.0,67162.0,0.0024535]
[1722294777298,2.254715,67162.0,67161.0,0.05728749]
[1722294777547,2.52296874,67162.0,67161.0,0.05728749]
[1722294777783,2.49537338,67162.0,67161.0,0.05728749]
[1722294778030,2.80316038,67162.0,67161.0,0.05728749]
[1722294778481,2.89100519,67162.0,67161.0,0.05728749]
[1722294778699,2.93329454,67162.0,67161.0,0.05728749]
[1722294778933,2.89100519,67162.0,67161.0,0.05728749]
[1722294779176,2.60421819,67162.0,67161.0,0.05828749]
[1722294779406,2.90200519,67162.0,67161.0,0.05828749]
[1722294779670,2.81416038,67162.0,67161.0,0.05928749]
[1722294780163,2.8141409,67162.0,67161.0,0.05928749]
[1722294780399,2.90197793,67162.0,67161.0,0.05928749]
[1722294780622,2.92534358,67162.0,67161.0,0.05928749]
[1722294781480,2.83750655,67162.0,67161.0,0.05928749]
[1722294781702,2.58559723,67162.0,67161.0,0.05928749]
[1722294781921,2.5946592,67162.0,67161.0,0.05928749]
[1722294782147,2.36696037,67162.0,67161.0,0.05928749]
[1722294782374,2.25921062,67162.0,67161.0,0.05928749]
[1722294782611,2.36691366,67162.0,67161.0,0.05928749]
[1722294783048,2.20991366,67162.0,67161.0,0.05928749]
[1722294783533,1.57906226,67162.0,67161.0,0.05928749]
[1722294783767,1.53269661,67162.0,67161.0,0.05928749]
[1722294784002,1.53269661,67162.0,67161.0,0.01199749]
[1722294784703,1.64005518,67162.0,67161.0,0.01199749]
[1722294785142,1.67305518,67162.0,67161.0,0.01199749]
[1722294785362,1.83615457,67162.0,67161.0,0.01199749]
[1722294785575,1.728796,67162.0,67161.0,0.01199749]
[1722294785797,2.29557389,67162.0,67161.0,0.01199749]
[1722294786072,1.97778689,67162.0,67161.0,0.01199749]
[1722294786289,2.43257389,67162.0,67161.0,0.01199749]
[1722294786715,2.45593852,67162.0,67161.0,0.01199749]
[1722294786941,2.47593852,67162.0,67161.0,0.01199749]
[1722294788010,2.53923852,67162.0,67161.0,0.01199749]
[1722294788412,2.53923852,67162.0,67150.0,0.009218]
[1722294788413,0.03,67152.0,67150.0,0.009218]
[1722294788632,2.62347539,67152.0,67150.0,0.009218]
[1722294788834,0.32592,67150.0,67149.0,0.14999999]
[1722294789081,2.46229921,67150.0,67149.0,0.14999999]
[1722294789395,2.86888314,67150.0,67149.0,0.14999999]
[1722294789591,3.07448253,67150.0,67149.0,0.14999999]
[1722294789813,3.11594873,67150.0,67149.0,0.14999999]
[1722294790223,3.11594873,67150.0,67149.0,0.12021499]
[1722294790421,2.262535,67144.0,67143.0,0.12021299]
[1722294790587,0.773239,67138.0,67137.0,0.14999999]
[1722294790745,0.1494,67126.0,67119.0,0.14999999]
[1722294790954,1.286805,67120.0,67119.0,0.14999999]
[1722294791170,1.286805,67120.0,67113.0,0.14999999]
[1722294791171,0.614,67114.0,67113.0,0.14999999]
[1722294791371,1.64388142,67114.0,67113.0,0.14999999]
[1722294791573,0.37865115,67114.0,67113.0,0.14999999]
[1722294791781,0.37865115,67114.0,67113.0,0.21129999]
[1722294791782,0.15855378,67114.0,67113.0,0.21129999]
[1722294791981,0.15527263,67114.0,67113.0,0.72660399]
[1722294792207,0.14309939,67114.0,67113.0,0.21129999]
[1722294792686,0.15709939,67114.0,67113.0,0.21129999]
[1722294793120,0.15515011,67114.0,67113.0,0.65830599]
[1722294793277,0.15309939,67114.0,67113.0,0.65830599]
[1722294793715,0.15309939,67114.0,67113.0,1.17360999]
[1722294794554,0.15609939,67114.0,67113.0,1.17360999]
[1722294794779,0.14309939,67114.0,67113.0,0.87560599]
[1722294794926,0.15209939,67114.0,67113.0,1.17360999]
[1722294795145,0.15409939,67114.0,67113.0,1.17360999]
[1722294795345,0.17547472,67114.0,67113.0,1.17360999]
[1722294795510,0.16647472,67114.0,67113.0,1.17360999]
[1722294795703,0.14809939,67114.0,67113.0,1.17360999]
[1722294796375,0.005,67114.0,67113.0,1.47161399]
[1722294796735,0.007,67114.0,67113.0,1.55411399]
[1722294796970,0.005,67114.0,67113.0,1.55411399]
[1722294797204,0.005,67114.0,67113.0,1.54411399]
[1722294797500,0.005,67114.0,67113.0,1.54811399]
[1722294797701,0.148953,67135.0,67130.0,0.0645]
[1722294797903,0.19360007,67134.0,67130.0,0.0645]
[1722294798102,0.023,67133.0,67130.0,0.0645]
[1722294798308,0.14309939,67132.0,67130.0,0.213464]
[1722294798606,0.03505072,67131.0,67130.0,0.593593]
[1722294798836,0.03505072,67131.0,67113.0,0.43800399]
[1722294798837,0.16609939,67131.0,67113.0,0.11019999]
[1722294799038,0.16609939,67131.0,67101.0,0.15921799]
[1722294799039,0.987932,67102.0,67101.0,0.15921799]
[1722294799167,1.47127257,67102.0,67101.0,0.15921799]
[1722294799371,1.90520213,67102.0,67101.0,0.15921799]
[1722294799596,1.17906221,67102.0,67101.0,0.15921799]
[1722294799796,1.23696494,67102.0,67101.0,0.15921799]
[1722294799994,1.25996494,67102.0,67101.0,0.15921799]
[1722294800222,1.66006377,67102.0,67101.0,0.15921799]
[1722294800580,1.77113669,67102.0,67101.0,0.15921799]
[1722294801212,1.74559086,67102.0,67101.0,0.15921799]
[1722294801451,1.50836,67096.0,67071.0,0.21599999]
[1722294801650,1.8113999,67096.0,67071.0,0.21599999]
[1722294801778,2.03494207,67096.0,67071.0,0.21599999]
[1722294802172,1.92335978,67096.0,67071.0,0.21599999]
[1722294802576,1.50566625,67096.0,67078.0,0.07154355]
[1722294802969,1.49566625,67096.0,67078.0,0.07154355]
[1722294803217,1.36872574,67096.0,67071.0,0.21599999]
[1722294803421,1.8050096,67096.0,67072.0,0.07154355]
[1722294803593,1.9620096,67096.0,67072.0,0.07154355]
[1722294803845,2.05184282,67096.0,67072.0,0.07154355]
[1722294804023,2.29431406,67096.0,67095.0,0.12599999]
[1722294804220,1.01498531,67096.0,67095.0,0.12599999]
[1722294804591,0.16905927,67096.0,67095.0,0.12599999]
[1722294804791,0.01195988,67096.0,67095.0,0.65502599]
[1722294804904,0.01195988,67096.0,67095.0,0.72072599]
[1722294805104,0.15709939,67096.0,67095.0,0.42264199]
[1722294805343,0.15709939,67096.0,67095.0,0.72072599]
[1722294805543,0.15709939,67096.0,67095.0,0.12599999]
[1722294805544,0.60354263,67096.0,67095.0,0.12599999]
[1722294805743,0.29213939,67096.0,67095.0,0.12599999]
[1722294806083,0.61754263,67096.0,67095.0,0.12599999]
[1722294806628,0.64054263,67096.0,67095.0,0.12599999]
[1722294806927,0.65454263,67096.0,67095.0,0.12599999]
[1722294807096,0.64992742,67096.0,67095.0,0.12599999]
[1722294807439,0.96200742,67096.0,67095.0,0.12599999]
[1722294807665,0.93862263,67096.0,67095.0,0.12599999]
[1722294807871,0.92462263,67096.0,67095.0,0.12599999]
[1722294808090,1.72159128,67096.0,67095.0,0.12599999]
[1722294808291,1.89663073,67096.0,67095.0,0.12599999]
[1722294808547,2.19471073,67096.0,67095.0,0.12599999]
[1722294808789,2.18471073,67096.0,67095.0,0.12599999]
[1722294808961,2.30812446,67096.0,67095.0,0.12599999]
[1722294809340,1.60419128,67096.0,67095.0,0.12599999]
[1722294809504,1.55648421,67096.0,67095.0,0.12599999]
[1722294809907,1.56448421,67096.0,67095.0,0.11791299]
[1722294810925,1.58787139,67096.0,67095.0,0.11791299]
[1722294811123,1.87795139,67096.0,67095.0,0.11791299]
[1722294811339,2.35303139,67096.0,67095.0,0.11791299]
[1722294811536,2.61131305,67096.0,67095.0,0.11791299]
[1722294811781,2.62531305,67096.0,67095.0,0.11791299]
[1722294812003,2.62531305,67096.0,67060.0,0.005]
[1722294812004,0.03,67078.0,67060.0,0.005]
[1722294812203,0.61428,67072.0,67060.0,0.005]
[1722294812435,0.61428,67072.0,67047.0,0.15029999]
[1722294812436,1.56288,67060.0,67059.0,0.06552199]
[1722294812668,2.79855143,67060.0,67059.0,0.06552199]
[1722294812869,2.91840411,67060.0,67059.0,0.06552199]
[1722294813091,4.0400592,67060.0,67059.0,0.06552199]
[1722294813290,2.43907439,67054.0,67053.0,0.09034599]
[1722294813414,0.723979,67048.0,67047.0,0.12046999]
[1722294813616,1.68721477,67048.0,67047.0,0.12046999]
[1722294813839,1.7755398,67048.0,67047.0,0.12046999]
[1722294814019,0.6838704,67048.0,67047.0,0.12046999]
[1722294814216,0.72666502,67048.0,67047.0,0.12046999]
[1722294814420,1.36321822,67048.0,67047.0,0.12046999]
[1722294814620,1.05836413,67048.0,67047.0,0.12046999]
[1722294814844,0.40167151,67048.0,67047.0,0.12046999]
[1722294815054,0.27963213,67048.0,67047.0,0.12046999]
[1722294815245,0.15622602,67048.0,67047.0,0.12046999]
[1722294815451,0.15328192,67048.0,67047.0,0.12046999]
[1722294815830,0.13977056,67048.0,67047.0,0.12046999]
[1722294816491,1.38372558,67048.0,67047.0,0.12046999]
[1722294816713,1.38372558,67048.0,67047.0,0.11788006]
[1722294816912,1.61588346,67048.0,67047.0,0.11788006]
[1722294817175,1.69588428,67048.0,67047.0,0.11788006]
[1722294817371,1.16543258,67048.0,67047.0,0.11788006]
[1722294817540,0.87723137,67048.0,67047.0,0.11788006]
[1722294818102,1.01852437,67048.0,67047.0,0.11788006]
[1722294818305,1.01852437,67048.0,67041.0,0.12599999]
[1722294818306,0.63448,67042.0,67041.0,0.12599999]
[1722294818507,1.90920046,67042.0,67041.0,0.12599999]
[1722294818678,2.00620303,67042.0,67041.0,0.12599999]
[1722294818897,1.72081305,67042.0,67041.0,0.11998269]
[1722294819202,0.40518941,67042.0,67041.0,0.11998269]
[1722294819370,0.25602941,67042.0,67041.0,0.11998269]
[1722294819522,0.25602941,67042.0,67041.0,0.12298012]
[1722294819523,0.40518941,67042.0,67041.0,0.12298012]
[1722294819723,0.15602941,67042.0,67041.0,0.12298012]
[1722294819940,0.15602941,67042.0,67041.0,0.27214212]
[1722294820146,0.60350941,67042.0,67041.0,0.11998269]
[1722294820358,0.30518941,67042.0,67041.0,0.11998269]
[1722294820776,0.15602941,67042.0,67041.0,0.11998269]
[1722294820981,0.30518941,67042.0,67041.0,0.11998269]
[1722294821399,0.40518941,67042.0,67041.0,0.11998269]
[1722294821717,0.27902941,67042.0,67041.0,0.11998269]
[1722294821920,1.18182941,67042.0,67041.0,0.11998269]
[1722294822115,1.48014941,67042.0,67041.0,0.11998269]
[1722294822278,1.50355519,67042.0,67041.0,0.11998269]
[1722294822779,1.52355519,67042.0,67041.0,0.11998269]
[1722294822953,1.73587519,67042.0,67041.0,0.11998269]
[1722294823126,1.69846941,67042.0,67041.0,0.11998269]
[1722294823533,1.71246941,67042.0,67041.0,0.11998269]
[1722294823736,1.69846941,67042.0,67041.0,0.11998269]
[1722294823969,1.69846941,67042.0,67006.0,0.14999999]
[1722294823970,0.149191,67028.0,67006.0,0.14999999]
[1722294824184,0.149191,67028.0,66991.0,0.072129]
[1722294824185,0.447793,66995.0,66994.0,0.08362527]
[1722294824502,0.447793,66995.0,66994.0,0.07700951]
[1722294824503,1.62825319,66995.0,66994.0,0.07700951]
[1722294824703,1.73101886,66995.0,66994.0,0.07700951]
[1722294824840,1.37622455,66995.0,66994.0,0.07700951]
[1722294825051,1.31503518,66995.0,66994.0,0.07700951]
[1722294825253,1.36342345,66995.0,66994.0,0.07200951]
[1722294825513,1.4500739,66995.0,66994.0,0.07200951]
[1722294826145,1.78898617,66995.0,66994.0,0.07200951]
[1722294826273,1.49109011,66995.0,66994.0,0.07200951]
[1722294826459,1.36422069,66995.0,66994.0,0.07200951]
[1722294826655,0.64716269,66995.0,66994.0,0.07200951]
[1722294826858,0.17929081,66995.0,66994.0,0.07200951]
[1722294827064,0.17929081,66995.0,66994.0,0.22424279]
[1722294827065,0.03619142,66995.0,66994.0,0.22424279]
[1722294827259,0.02342575,66995.0,66994.0,0.82131079]
[1722294827698,0.02342575,66995.0,66994.0,0.07200951]
[1722294827699,0.16652514,66995.0,66994.0,0.07200951]
[1722294827896,0.61431814,66995.0,66994.0,0.07200951]
[1722294828099,0.17919545,66995.0,66994.0,0.07497579]
[1722294828496,0.62698845,66995.0,66994.0,0.07497579]
[1722294829283,0.17919545,66995.0,66994.0,0.07497579]
[1722294829489,0.03609606,66995.0,66994.0,0.52277679]
[1722294829692,0.0015542,67020.0,67008.0,0.00296628]
[1722294829890,0.0015542,67020.0,67002.0,0.298497]
[1722294829891,0.14309939,67019.0,67014.0,0.00296628]
[1722294830136,0.298462,67011.0,66994.0,0.07200951]
[1722294830365,0.21464294,67015.0,66994.0,0.07200951]
[1722294830366,0.014,66995.0,66994.0,0.07497579]
[1722294830567,0.30636339,66995.0,66994.0,0.07497579]
[1722294830819,0.60489239,66995.0,66994.0,0.07497579]
[1722294830986,0.60489239,66995.0,66994.0,0.07200951]
[1722294830987,0.61945594,66995.0,66994.0,0.07200951]
[1722294831163,0.91798494,66995.0,66994.0,0.07200951]
[1722294831370,0.17166294,66995.0,66994.0,0.07497579]
[1722294831996,0.17166294,66995.0,66994.0,0.81631079]
[1722294831997,0.02856355,66995.0,66994.0,0.81631079]
[1722294832287,0.44444115,67023.0,66994.0,0.81631079]
[1722294832288,0.149233,67009.0,67008.0,0.00296628]
[1722294832480,0.59079939,67009.0,67008.0,0.00296628]
[1722294832725,0.29233239,67009.0,67008.0,0.00296628]
[1722294832924,0.298481,67006.0,66994.0,0.06700951]
[1722294833124,0.14309939,67005.0,66994.0,0.06700951]
[1722294833534,0.149256,66999.0,66994.0,0.06700951]
[1722294833702,0.14309939,66999.0,66994.0,0.06700951]
[1722294834100,0.15277398,66998.0,66994.0,0.06700951]
[1722294834298,0.30203298,66998.0,66994.0,0.06700951]
[1722294834524,0.30203298,66998.0,66995.0,0.00296628]
[1722294834525,0.149262,66996.0,66995.0,0.00296628]
[1722294834726,0.59088639,66996.0,66995.0,0.00296628]
[1722294835154,0.89908598,66996.0,66995.0,0.00296628]
[1722294835361,0.89908598,66996.0,66994.0,0.06700951]
[1722294835362,0.746322,66995.0,66994.0,0.06700951]
[1722294835532,0.14309939,66995.0,66994.0,0.06997579]
[1722294835733,0.59089239,66995.0,66994.0,0.07097579]
[1722294835937,0.60056698,66995.0,66994.0,0.07097579]
[1722294836101,0.60056698,66995.0,66994.0,0.06700951]
[1722294836102,1.22062498,66995.0,66994.0,0.06700951]
[1722294836648,0.92209598,66995.0,66994.0,0.06700951]
[1722294837008,1.22062498,66995.0,66994.0,0.06700951]
[1722294838682,1.51915398,66995.0,66994.0,0.06700951]
[1722294839260,1.22062498,66995.0,66994.0,0.06700951]
[1722294840161,1.22062498,66995.0,66994.0,0.06800951]
[1722294840363,1.23462498,66995.0,66994.0,0.06800951]
[1722294841111,0.91309598,66995.0,66994.0,0.06800951]
[1722294841313,0.19019579,66995.0,66994.0,0.13747579]
[1722294841580,0.0470964,66995.0,66994.0,0.30141327]
[1722294841726,0.0470964,66995.0,66994.0,0.06800951]
[1722294841727,1.23504679,66995.0,66994.0,0.06800951]
[1722294841924,1.2253722,66995.0,66994.0,0.06800951]
[1722294842128,1.34820166,66995.0,66994.0,0.06800951]
[1722294842524,1.63273066,66995.0,66994.0,0.06700951]
[1722294842927,1.35720166,66995.0,66994.0,0.06700951]
[1722294843128,1.24404679,66995.0,66994.0,0.06696951]
[1722294843355,2.19514941,66995.0,66994.0,0.06696951]
[1722294843508,2.14628763,66995.0,66994.0,0.03711451]
[1722294843713,2.14628763,66995.0,66994.0,0.00726151]
[1722294843714,2.73574575,66995.0,66994.0,0.00726151]
[1722294844193,0.01,66992.0,66988.0,0.09462899]
[1722294844306,0.01,66992.0,66982.0,0.14999999]
[1722294844307,0.56444772,66983.0,66982.0,0.09028199]
[1722294844508,1.8939238,66983.0,66982.0,0.00070399]
[1722294844735,2.50193262,66983.0,66982.0,0.00070399]
[1722294844937,2.60193262,66983.0,66982.0,0.00070399]
[1722294845162,2.90051562,66983.0,66982.0,0.00070399]
[1722294845363,2.90051562,66983.0,66970.0,0.01598839]
[1722294845364,2.37377172,66971.0,66970.0,0.01598839]
[1722294845589,3.12070231,66971.0,66970.0,0.01598839]
[1722294845854,2.4696676,66971.0,66970.0,0.01598839]
[1722294846079,2.1710316,66971.0,66970.0,0.01598839]
[1722294846309,2.1710316,66971.0,66946.0,0.14999999]
[1722294846310,0.26590472,66965.0,66964.0,0.03053238]
[1722294846515,1.47846373,66965.0,66964.0,0.03053238]
[1722294846715,2.17633007,66965.0,66964.0,0.03053238]
[1722294846915,1.72883872,66965.0,66964.0,0.03053238]
[1722294847170,1.423142,66965.0,66964.0,0.03053238]
[1722294847548,1.114479,66965.0,66964.0,0.03053238]
[1722294847976,1.03656153,66965.0,66964.0,0.03053238]
[1722294848265,1.03656153,66965.0,66944.0,0.149377]
[1722294848266,1.344343,66947.0,66922.0,0.14999999]
[1722294848500,1.669286,66935.0,66934.0,0.00059899]
[1722294848706,1.669286,66935.0,66928.0,0.13167084]
[1722294848707,2.05812534,66935.0,66928.0,0.13167084]
[1722294848876,1.354708,66929.0,66928.0,0.13167084]
[1722294849076,2.0495226,66929.0,66928.0,0.13167084]
[1722294849324,2.18343994,66929.0,66928.0,0.01213884]
[1722294849525,2.58226394,66929.0,66928.0,8.4e-07]
[1722294849675,2.47453214,66929.0,66928.0,8.4e-07]
[1722294850379,2.17570814,66929.0,66928.0,8.4e-07]
[1722294850598,2.12844694,66929.0,66928.0,8.4e-07]
[1722294850829,1.82962294,66929.0,66928.0,8.4e-07]
[1722294851479,1.055898,66928.0,66922.0,0.14999999]
[1722294851695,1.41681257,66928.0,66922.0,0.14999999]
[1722294851897,1.00025347,66928.0,66922.0,0.14999999]
[1722294852104,1.00025347,66928.0,66923.0,0.00296628]
[1722294852105,0.15162927,66928.0,66923.0,0.00296628]
[1722294852307,0.59987127,66928.0,66927.0,0.00664975]
[1722294852510,0.15162927,66928.0,66927.0,0.00664975]
[1722294852716,0.59987127,66928.0,66927.0,0.00664975]
[1722294853130,0.15162927,66928.0,66927.0,0.00961603]
[1722294853360,0.16562927,66928.0,66927.0,0.00664975]
[1722294853564,0.15162927,66928.0,66927.0,0.00664975]
[1722294853773,0.16562927,66928.0,66927.0,0.00664975]
[1722294854197,0.15162927,66928.0,66927.0,0.00961603]
[1722294854678,0.16562927,66928.0,66927.0,0.00961603]
[1722294854890,0.16562927,66928.0,66927.0,0.00664975]
[1722294855108,0.16562927,66928.0,66927.0,0.00961603]
[1722294855299,1.33003111,66928.0,66927.0,0.00664975]
[1722294855515,0.77415872,66923.0,66922.0,0.14999999]
[1722294855720,1.31610811,66923.0,66922.0,0.14999999]
[1722294855930,0.99725811,66923.0,66922.0,0.14999999]
[1722294856137,1.32808858,66923.0,66922.0,0.14999999]
[1722294856355,1.30463799,66923.0,66922.0,0.14999999]
[1722294856562,1.31463799,66923.0,66922.0,0.14999999]
[1722294857019,1.32863799,66923.0,66922.0,0.14999999]
[1722294857450,1.32160427,66923.0,66922.0,0.14999999]
[1722294857627,1.32863799,66923.0,66922.0,0.14999999]
[1722294857857,1.32160427,66923.0,66922.0,0.14999999]
[1722294858491,1.32160427,66923.0,66916.0,0.09209067]
[1722294858492,0.47534872,66917.0,66916.0,0.09209067]
[1722294858710,1.77621972,66917.0,66916.0,0.08310635]
[1722294858915,4.5795605,66917.0,66916.0,0.08310635]
[1722294859145,4.58809038,66917.0,66916.0,0.08310635]
[1722294859347,4.58809038,66917.0,66910.0,0.14999999]
[1722294859348,1.76054572,66911.0,66910.0,0.14999999]
[1722294859549,2.63787895,66911.0,66910.0,0.14999999]
[1722294859752,2.56867295,66911.0,66910.0,0.14999999]
[1722294859955,2.42870283,66911.0,66910.0,0.12010899]
[1722294860159,2.42870283,66911.0,66910.0,0.09021799]
[1722294860363,2.12823183,66911.0,66910.0,0.03043599]
[1722294860570,1.46176272,66905.0,66900.0,0.501]
[1722294860745,1.70486211,66905.0,66900.0,0.501]
[1722294860946,2.61849311,66905.0,66904.0,0.13542339]
[1722294861246,3.2743258,66905.0,66904.0,0.13542339]
[1722294861583,3.2743258,66905.0,66900.0,0.501]
[1722294861584,1.46184372,66901.0,66900.0,0.501]
[1722294861785,2.03852266,66901.0,66900.0,0.501]
[1722294861965,2.26467166,66901.0,66900.0,0.501]
[1722294862213,1.97684429,66901.0,66900.0,0.501]
[1722294862382,1.32054202,66901.0,66900.0,0.501]
[1722294862814,0.15422102,66901.0,66900.0,0.501]
[1722294863006,0.15422102,66901.0,66900.0,0.5665]
[1722294863210,0.15422102,66901.0,66900.0,0.56946628]
[1722294863585,0.15162927,66901.0,66900.0,0.56946628]
[1722294863790,0.15309939,66901.0,66900.0,0.501]
[1722294863968,0.59152239,66901.0,66900.0,0.501]
[1722294864168,0.59991302,66901.0,66900.0,0.501]
[1722294864393,1.30735102,66901.0,66900.0,0.501]
[1722294864616,1.60630002,66901.0,66900.0,0.49702917]
[1722294864811,1.40735102,66901.0,66900.0,0.49702917]
[1722294864984,1.39735102,66901.0,66900.0,0.49702917]
[1722294865186,1.30781102,66901.0,66900.0,0.49702917]
[1722294865390,1.29781102,66901.0,66900.0,0.49702917]
[1722294865713,0.99886202,66901.0,66900.0,0.49702917]
[1722294866256,1.63076002,66901.0,66900.0,0.49702917]
[1722294866386,1.57488474,66901.0,66900.0,0.49702917]
[1722294866588,1.42838474,66901.0,66900.0,0.49702917]